bitfinex-derivatives/quotes_BTCF0:USTF0_20241022
["timestamp","ask_amount","ask_price","bid_price","bid_amount"]
[1729584322907,0.21431,67323.0,67321.0,0.04424785]
[1729584323110,0.37979225,67325.0,67321.0,0.04424785]
[1729584323314,0.37979225,67325.0,67324.0,0.074308]
[1729584323315,0.3608,67325.0,67324.0,0.074308]
[1729584324627,0.3608,67332.0,67324.0,0.074308]
[1729584324819,0.3608,67332.0,67331.0,0.0743]
[1729584325929,0.3608,67332.0,67331.0,0.1334197]
[1729584326127,0.3608,67332.0,67331.0,0.13342668]
[1729584326322,0.3608,67332.0,67331.0,0.0743]
[1729584329130,0.3608,67332.0,67331.0,0.14814829]
[1729584329828,0.00222819,67335.0,67331.0,0.07384829]
[1729584330025,0.00222819,67335.0,67334.0,0.214297]
[1729584330531,0.00222819,67335.0,67334.0,0.28814529]
[1729584330728,0.3608,67338.0,67334.0,0.82652222]
[1729584330929,0.074262,67366.0,67338.0,0.074293]
[1729584330930,0.074278,67352.0,67338.0,0.074293]
[1729584331123,0.074278,67352.0,67351.0,0.074278]
[1729584332825,0.3608,67353.0,67351.0,0.14]
[1729584333031,0.3608,67362.0,67356.0,0.074272]
[1729584333032,0.074272,67358.0,67356.0,0.074272]
[1729584333222,0.074272,67358.0,67357.0,0.14]
[1729584333423,0.074272,67358.0,67357.0,0.18435148]
[1729584333729,0.074272,67358.0,67357.0,0.25862348]
[1729584333933,0.074264,67364.0,67362.0,0.074266]
[1729584334140,0.074265,67363.0,67362.0,0.074266]
[1729584334832,0.00222735,67365.0,67363.0,0.074264]
[1729584335031,0.00222735,67365.0,67364.0,0.074264]
[1729584335236,0.00222735,67365.0,67364.0,0.14820467]
[1729584335533,0.00222735,67365.0,67364.0,0.16559065]
[1729584335733,0.074252,67375.0,67373.0,0.074254]
[1729584335938,0.074252,67375.0,67374.0,0.5008]
[1729584336235,0.5008,67381.0,67374.0,0.5008]
[1729584336236,0.3608,67381.0,67375.0,0.074252]
[1729584336435,0.00222677,67395.0,67380.0,0.3608]
[1729584336741,0.074238,67388.0,67386.0,0.04429206]
[1729584336940,0.074238,67388.0,67380.0,0.3608]
[1729584336941,0.074238,67388.0,67387.0,0.04429206]
[1729584337126,0.074238,67388.0,67384.0,0.14]
[1729584337432,0.074238,67388.0,67382.0,0.04429206]
[1729584337930,0.074238,67388.0,67385.0,0.04429206]
[1729584338131,0.074238,67388.0,67381.0,0.214245]
[1729584338132,0.074238,67388.0,67383.0,0.04429206]
[1729584338532,0.074238,67388.0,67382.0,0.04429206]
[1729584338725,0.074238,67388.0,67384.0,0.14]
[1729584338930,0.074238,67388.0,67384.0,0.214241]
[1729584339529,0.3608,67391.0,67384.0,0.14]
[1729584339832,0.3608,67391.0,67389.0,0.14]
[1729584340022,0.074231,67394.0,67389.0,0.214236]
[1729584340230,0.074231,67394.0,67393.0,0.14]
[1729584340748,0.00222677,67395.0,67390.0,0.074235]
[1729584341044,0.074233,67392.0,67389.0,0.14]
[1729584342027,0.074233,67392.0,67388.0,0.074237]
[1729584343435,0.14,67394.0,67388.0,0.074237]
[1729584343631,0.074234,67391.0,67388.0,0.074237]
[1729584343946,0.074235,67390.0,67388.0,0.074237]
[1729584346032,0.074235,67390.0,67387.0,0.3608]
[1729584347648,0.00222677,67395.0,67389.0,0.14]
[1729584347952,0.074231,67394.0,67389.0,0.214236]
[1729584348138,0.074231,67394.0,67390.0,0.074235]
[1729584348342,0.00222677,67395.0,67390.0,0.074235]
[1729584348649,0.074233,67392.0,67390.0,0.074235]
[1729584348941,0.074234,67391.0,67390.0,0.074235]
[1729584350435,0.074234,67391.0,67389.0,0.14]
[1729584350637,0.074234,67391.0,67387.0,0.3608]
[1729584350837,0.074235,67390.0,67387.0,0.3608]
[1729584353250,0.074237,67389.0,67387.0,0.3608]
[1729584354738,0.00222677,67395.0,67387.0,0.3608]
[1729584354941,0.074235,67391.0,67390.0,0.14]
[1729584357750,0.074235,67391.0,67390.0,0.214235]
[1729584360448,0.074235,67391.0,67390.0,0.14]
[1729584360950,0.074235,67391.0,67390.0,0.18429711]
[1729584361150,0.074235,67391.0,67390.0,0.14]
[1729584361954,0.00222677,67395.0,67390.0,0.14]
[1729584362257,0.074227,67398.0,67394.0,0.575031]
[1729584362442,0.074227,67398.0,67397.0,0.14]
[1729584363948,0.074229,67397.0,67395.0,0.1480948]
[1729584364138,0.074229,67397.0,67396.0,0.16610031]
[1729584366145,0.074229,67397.0,67396.0,0.25471826]
[1729584366548,0.074229,67397.0,67396.0,0.18048926]
[1729584366855,0.074229,67397.0,67396.0,0.09187131]
[1729584367152,0.074229,67397.0,67396.0,0.18048926]
[1729584367353,0.074229,67397.0,67396.0,0.09187131]
[1729584367749,0.074229,67397.0,67396.0,0.18048926]
[1729584367949,0.074229,67397.0,67396.0,0.09187131]
[1729584373960,0.214229,67397.0,67396.0,0.09187131]
[1729584374549,0.659349,67397.0,67396.0,0.16605004]
[1729584374752,0.44512,67396.0,67389.0,0.0890151]
[1729584375056,0.44512,67396.0,67380.0,0.00222564]
[1729584375057,0.074245,67381.0,67380.0,0.00222564]
[1729584375261,0.214245,67381.0,67380.0,0.11215058]
[1729584375650,0.214245,67381.0,67380.0,0.00222564]
[1729584376063,0.659485,67381.0,67380.0,0.00222564]
[1729584377256,0.659485,67381.0,67370.0,0.074256]
[1729584377257,0.58524,67381.0,67378.0,0.05932205]
[1729584377452,0.074247,67379.0,67378.0,0.05932205]
[1729584377652,0.074249,67378.0,67377.0,0.05932205]
[1729584377862,0.214249,67378.0,67377.0,0.05932205]
[1729584378253,0.07425,67377.0,67376.0,0.05932205]
[1729584378562,0.21425,67377.0,67376.0,0.05932205]
[1729584378957,0.76273,67377.0,67376.0,0.05932205]
[1729584379158,0.76273,67377.0,67365.0,0.3608]
[1729584379159,0.074262,67366.0,67365.0,0.3608]
[1729584379373,0.14,67368.0,67363.0,0.51911]
[1729584379557,0.074259,67369.0,67363.0,0.51831]
[1729584380066,0.074259,67369.0,67367.0,0.07426]
[1729584380656,0.074259,67369.0,67363.0,0.51911]
[1729584380859,0.435053,67374.0,67368.0,0.3608]
[1729584381057,0.435053,67374.0,67373.0,0.074254]
[1729584382852,0.01890239,67375.0,67374.0,0.074253]
[1729584383058,0.0022269,67380.0,67379.0,0.074247]
[1729584383365,0.0022269,67380.0,67379.0,0.214247]
[1729584384464,0.5874669,67380.0,67374.0,0.3608]
[1729584384662,0.074254,67373.0,67372.0,0.0008]
[1729584385654,0.074254,67373.0,67372.0,0.0451809]
[1729584385971,0.074254,67373.0,67372.0,0.0008]
[1729584386158,0.074254,67373.0,67368.0,0.3608]
[1729584386159,0.074256,67372.0,67368.0,0.3608]
[1729584386359,0.074257,67371.0,67368.0,0.36156]
[1729584386560,0.074257,67371.0,67368.0,0.435819]
[1729584386859,0.074257,67371.0,67370.0,0.074257]
[1729584387968,0.3608,67375.0,67371.0,0.074255]
[1729584388266,0.435052,67375.0,67374.0,0.04436361]
[1729584388462,0.14,67379.0,67374.0,0.04436361]
[1729584388671,0.1051869,67380.0,67374.0,0.04436361]
[1729584388967,0.074251,67377.0,67375.0,0.04436361]
[1729584389172,0.074251,67376.0,67375.0,0.11861561]
[1729584389470,0.074251,67376.0,67375.0,0.11860449]
[1729584389662,0.074251,67376.0,67375.0,0.074252]
[1729584390061,0.074251,67376.0,67375.0,0.214252]
[1729584390664,0.074251,67376.0,67375.0,0.074252]
[1729584391775,0.074251,67376.0,67375.0,0.214252]
[1729584392071,0.0022269,67380.0,67379.0,0.074247]
[1729584392369,0.0022269,67380.0,67379.0,0.30398289]
[1729584392574,0.0022269,67380.0,67379.0,0.74922289]
[1729584395569,0.435038,67388.0,67386.0,0.074239]
[1729584395878,0.435038,67388.0,67387.0,0.214239]
[1729584399672,0.074238,67388.0,67387.0,0.214239]
[1729584404689,0.074234,67391.0,67389.0,0.074235]
[1729584405188,0.01848607,67398.0,67390.0,0.43485734]
[1729584405375,0.074229,67396.0,67395.0,0.07423]
[1729584405576,0.074229,67396.0,67395.0,0.2375931]
[1729584405776,0.074229,67396.0,67395.0,0.14827708]
[1729584405981,0.074229,67396.0,67395.0,0.23758479]
[1729584406180,0.074229,67396.0,67395.0,0.07423]
[1729584407889,0.074229,67396.0,67394.0,0.07404708]
[1729584408088,0.074231,67394.0,67393.0,0.074232]
[1729584409896,0.214231,67394.0,67393.0,0.074232]
[1729584411993,0.214231,67394.0,67393.0,0.14827908]
[1729584413593,0.214231,67394.0,67393.0,0.074232]
[1729584414100,0.214231,67394.0,67393.0,0.14827908]
[1729584414394,0.214231,67394.0,67393.0,0.074232]
[1729584414890,0.09323023,67394.0,67393.0,0.074232]
[1729584415391,0.3608,67403.0,67393.0,0.07404708]
[1729584415596,0.3608,67403.0,67399.0,0.14]
[1729584415788,0.3608,67403.0,67399.0,0.074225]
[1729584416188,0.074223,67401.0,67400.0,0.074224]
[1729584418200,0.074223,67401.0,67400.0,0.14827108]
[1729584418399,0.01848543,67403.0,67400.0,0.16309633]
[1729584418699,0.074221,67403.0,67402.0,0.074222]
[1729584418892,0.07422,67405.0,67404.0,0.074219]
[1729584419897,0.074221,67404.0,67401.0,0.07404708]
[1729584420097,0.15862133,67407.0,67401.0,0.07404708]
[1729584420398,0.074221,67403.0,67402.0,0.07404708]
[1729584420599,0.074221,67403.0,67402.0,0.16306627]
[1729584420798,0.074221,67403.0,67402.0,0.07404708]
[1729584421097,0.074221,67403.0,67400.0,0.074224]
[1729584421098,0.074222,67402.0,67401.0,0.07404708]
[1729584421286,0.14,67404.0,67401.0,0.08913891]
[1729584421493,0.21422,67404.0,67403.0,0.07409353]
[1729584421789,0.21422,67404.0,67403.0,0.16313138]
[1729584421988,0.07422,67404.0,67403.0,0.16313141]
[1729584422191,0.07422,67404.0,67403.0,0.23734807]
[1729584422395,0.07422,67404.0,67403.0,0.16325888]
[1729584422592,0.07422,67404.0,67403.0,0.16311999]
[1729584424301,0.074221,67403.0,67402.0,0.14830411]
[1729584424597,0.074221,67403.0,67402.0,0.16326986]
[1729584425197,0.074221,67403.0,67402.0,0.16312959]
[1729584428300,0.074221,67403.0,67402.0,0.08904786]
[1729584428496,0.074221,67403.0,67402.0,0.16313703]
[1729584429297,0.074221,67403.0,67402.0,0.08904786]
[1729584429510,0.09324074,67403.0,67402.0,0.08904786]
[1729584432603,0.09324074,67403.0,67394.0,0.0887232]
[1729584432604,0.51981974,67403.0,67394.0,0.0887232]
[1729584432813,0.51981974,67403.0,67399.0,0.07412088]
[1729584432814,0.37981974,67403.0,67399.0,0.07412088]
[1729584433099,0.37981974,67403.0,67392.0,0.074233]
[1729584433407,0.074232,67394.0,67393.0,0.08870073]
[1729584435408,0.074232,67394.0,67393.0,0.17742393]
[1729584435603,0.074232,67394.0,67393.0,0.08870073]
[1729584437907,0.074232,67394.0,67393.0,0.16293273]
[1729584438807,0.074232,67394.0,67393.0,0.30293273]
[1729584440312,0.074232,67394.0,67393.0,0.25293273]
[1729584441907,0.10721083,67398.0,67397.0,0.074228]
[1729584442106,0.10721083,67398.0,67397.0,0.25292873]
[1729584442818,0.03298283,67398.0,67397.0,0.70372873]
[1729584443016,0.03298283,67398.0,67397.0,0.61372873]
[1729584443520,0.014,67398.0,67397.0,0.61365171]
[1729584443904,0.014,67398.0,67397.0,0.80928451]
[1729584444105,0.01875944,67401.0,67397.0,0.80928451]
[1729584444106,0.01875944,67401.0,67397.0,0.73505651]
[1729584444310,0.074219,67405.0,67400.0,0.09]
[1729584444516,0.074219,67405.0,67404.0,0.09]
[1729584444726,0.074219,67405.0,67404.0,0.17862371]
[1729584446015,0.074219,67405.0,67404.0,0.26765817]
[1729584446324,0.09262266,67405.0,67404.0,0.17862371]
[1729584446923,0.09262266,67405.0,67404.0,0.28411283]
[1729584447720,0.09262266,67405.0,67404.0,0.35833283]
[1729584447921,0.09262266,67405.0,67404.0,0.19411283]
[1729584448324,0.10662266,67405.0,67404.0,0.19411283]
[1729584449314,0.10662266,67405.0,67404.0,0.08862371]
[1729584449622,0.10662266,67405.0,67404.0,0.17763739]
[1729584451120,0.19662266,67405.0,67404.0,0.17763739]
[1729584451629,0.10662266,67405.0,67404.0,0.25185739]
[1729584452821,0.10662266,67405.0,67404.0,0.16284371]
[1729584453218,0.10662266,67405.0,67404.0,0.16273364]
[1729584453826,0.10662266,67405.0,67404.0,0.25273364]
[1729584454724,0.03240366,67405.0,67404.0,0.25273364]
[1729584455213,0.03240366,67405.0,67404.0,0.34174732]
[1729584455618,0.03240366,67405.0,67404.0,0.25273364]
[1729584457621,0.03240366,67405.0,67404.0,0.61353364]
[1729584457822,0.07421,67413.0,67404.0,0.53931364]
[1729584458023,0.07421,67413.0,67412.0,0.09]
[1729584458228,0.07421,67413.0,67412.0,0.25249678]
[1729584461338,0.09239332,67413.0,67412.0,0.25249678]
[1729584462633,0.09239332,67413.0,67412.0,0.32660478]
[1729584462828,0.09239332,67413.0,67412.0,0.238319]
[1729584463032,0.09239332,67413.0,67412.0,0.32652196]
[1729584463536,0.09239332,67413.0,67412.0,0.25241396]
[1729584464934,0.09239332,67413.0,67412.0,0.16241396]
[1729584465331,0.01818332,67413.0,67412.0,0.16241396]
[1729584465528,0.07643197,67417.0,67412.0,0.08820296]
[1729584465833,0.07643197,67417.0,67411.0,0.54156]
[1729584465834,0.07643197,67417.0,67415.0,0.09]
[1729584466036,0.07643197,67417.0,67415.0,0.164208]
[1729584466832,0.00222597,67417.0,67415.0,0.164208]
[1729584467034,0.435007,67416.0,67415.0,0.164208]
[1729584467422,0.435007,67416.0,67415.0,0.09]
[1729584468236,0.45327155,67416.0,67415.0,0.09]
[1729584468631,0.45327155,67416.0,67415.0,0.16410217]
[1729584470333,0.46727155,67416.0,67415.0,0.16410217]
[1729584470533,0.10647155,67416.0,67415.0,0.25234094]
[1729584470735,0.09247155,67416.0,67415.0,0.25234094]
[1729584472827,0.09247155,67416.0,67415.0,0.25230172]
[1729584474437,0.12047155,67416.0,67415.0,0.25330172]
[1729584477734,0.12047155,67416.0,67415.0,0.25320511]
[1729584480734,0.12047155,67416.0,67415.0,0.165208]
[1729584484637,0.12047155,67416.0,67415.0,0.25315895]
[1729584487246,0.04626455,67416.0,67415.0,0.25315895]
[1729584487648,0.04626455,67416.0,67415.0,0.34212404]
[1729584489749,0.04626455,67416.0,67415.0,0.34222018]
[1729584489947,0.04626455,67416.0,67415.0,0.25325509]
[1729584490252,0.028,67416.0,67415.0,0.25325509]
[1729584490449,0.028,67416.0,67415.0,0.35805502]
[1729584492244,0.102207,67416.0,67415.0,0.16325509]
[1729584492748,0.102207,67416.0,67415.0,0.25325509]
[1729584493145,0.102207,67416.0,67415.0,0.34226769]
[1729584494052,0.102207,67416.0,67415.0,0.25325509]
[1729584494755,0.102207,67416.0,67415.0,0.25327994]
[1729584495755,0.102207,67416.0,67415.0,0.34229254]
[1729584496254,0.102207,67416.0,67415.0,0.25327994]
[1729584496646,0.102207,67416.0,67415.0,0.08907194]
[1729584499251,0.102207,67416.0,67415.0,0.08934833]
[1729584499753,0.102207,67416.0,67415.0,0.16353815]
[1729584500660,0.102207,67416.0,67415.0,0.07518982]
[1729584501158,0.102207,67416.0,67415.0,0.001]
[1729584502957,0.547207,67416.0,67415.0,0.001]
[1729584504061,0.102207,67416.0,67415.0,0.001]
[1729584515956,0.102207,67416.0,67415.0,0.16325588]
[1729584516571,0.102207,67416.0,67415.0,0.07514394]
[1729584516764,0.102207,67416.0,67415.0,0.16333917]
[1729584516962,0.102207,67416.0,67415.0,0.08919523]
[1729584517159,0.102207,67416.0,67415.0,0.16333895]
[1729584517461,0.102207,67416.0,67415.0,0.08919523]
[1729584521463,0.192207,67416.0,67415.0,0.08919523]
[1729584521868,0.192207,67416.0,67415.0,0.16337127]
[1729584522070,0.553007,67416.0,67415.0,0.16337127]
[1729584522569,0.553007,67416.0,67415.0,0.001]
[1729584525370,0.463007,67416.0,67415.0,0.001]
[1729584526771,0.463007,67416.0,67415.0,0.07517604]
[1729584527278,0.463007,67416.0,67415.0,0.16358745]
[1729584527670,0.463007,67416.0,67415.0,0.001]
[1729584528066,0.463007,67416.0,67415.0,0.07517604]
[1729584528768,0.463007,67416.0,67415.0,0.16358905]
[1729584529575,0.463007,67416.0,67415.0,0.08941301]
[1729584529964,0.463007,67416.0,67415.0,0.16362883]
[1729584530364,0.463007,67416.0,67415.0,0.001]
[1729584536173,0.463007,67416.0,67415.0,0.07521582]
[1729584538780,0.463007,67416.0,67415.0,0.08943288]
[1729584541674,0.3888,67416.0,67415.0,0.16364088]
[1729584541983,0.3888,67416.0,67415.0,0.25267991]
[1729584542181,0.3888,67416.0,67415.0,0.16366713]
[1729584544689,0.028,67416.0,67415.0,0.16368371]
[1729584544986,0.028,67416.0,67415.0,0.25272274]
[1729584545189,0.36196,67424.0,67423.0,0.074199]
[1729584545377,0.3608,67424.0,67423.0,0.23839793]
[1729584545581,0.3608,67424.0,67423.0,0.25239203]
[1729584546391,0.3608,67424.0,67423.0,0.3265594]
[1729584546689,0.434998,67424.0,67423.0,0.25239203]
[1729584546889,0.434998,67424.0,67423.0,0.08819303]
[1729584547490,0.434998,67424.0,67423.0,0.16335144]
[1729584548089,0.3765851,67424.0,67422.0,0.07415841]
[1729584548290,0.4507831,67424.0,67423.0,0.091]
[1729584548705,0.4507831,67424.0,67423.0,0.092]
[1729584549391,0.4507831,67424.0,67423.0,0.16615841]
[1729584549892,0.4507831,67424.0,67423.0,0.091]
[1729584550399,0.4507831,67424.0,67423.0,0.09]
[1729584550598,0.3765851,67424.0,67423.0,0.164199]
[1729584551004,0.3765851,67424.0,67423.0,0.165199]
[1729584551210,0.3765851,67424.0,67423.0,0.32747703]
[1729584551514,0.3765851,67424.0,67423.0,0.25331862]
[1729584551515,0.0157851,67424.0,67423.0,0.25331862]
[1729584551697,0.074195,67427.0,67423.0,0.26911962]
[1729584551903,0.074192,67429.0,67427.0,0.074194]
[1729584552107,0.074192,67429.0,67428.0,0.17811962]
[1729584552609,0.074192,67429.0,67428.0,0.25221259]
[1729584553400,0.074192,67429.0,67428.0,0.16409297]
[1729584553604,0.074192,67429.0,67428.0,0.07409297]
[1729584553906,0.164192,67429.0,67428.0,0.07409297]
[1729584554505,0.074193,67428.0,67427.0,0.07409297]
[1729584554698,0.074193,67428.0,67427.0,0.16197946]
[1729584555012,0.23828597,67428.0,67427.0,0.07409297]
[1729584555211,0.074195,67427.0,67426.0,0.16409297]
[1729584556008,0.074195,67427.0,67426.0,0.25198042]
[1729584556502,0.074195,67427.0,67426.0,0.16409297]
[1729584557206,0.08688745,67426.0,67424.0,0.074198]
[1729584557407,0.16108345,67426.0,67425.0,0.17788861]
[1729584559415,0.17008345,67426.0,67425.0,0.17788861]
[1729584560304,0.16108345,67426.0,67425.0,0.17788861]
[1729584560608,0.17008345,67426.0,67425.0,0.002]
[1729584560814,0.17008345,67426.0,67425.0,0.092]
[1729584561708,0.17008345,67426.0,67425.0,0.166197]
[1729584563010,0.17008345,67426.0,67421.0,0.00076]
[1729584563011,0.35008345,67426.0,67421.0,0.00076]
[1729584563214,0.09,67422.0,67413.0,0.074209]
[1729584563520,0.074209,67415.0,67413.0,0.164209]
[1729584564218,0.074209,67415.0,67414.0,0.074209]
[1729584564813,0.074203,67420.0,67417.0,0.074205]
[1729584565008,0.074202,67420.0,67419.0,0.09]
[1729584565415,0.074202,67420.0,67419.0,0.164203]
[1729584566513,0.083202,67420.0,67419.0,0.164203]
[1729584569224,0.084202,67420.0,67419.0,0.165203]
[1729584572215,0.084202,67420.0,67419.0,0.001]
[1729584575634,0.084202,67420.0,67419.0,0.087924]
[1729584577628,0.085202,67420.0,67419.0,0.087924]
[1729584579622,0.175202,67420.0,67419.0,0.087924]
[1729584580528,0.085202,67420.0,67419.0,0.087924]
[1729584582429,0.446002,67420.0,67419.0,0.087924]
[1729584583733,0.085202,67420.0,67419.0,0.087924]
[1729584583936,0.446002,67420.0,67419.0,0.087924]
[1729584584735,0.536002,67420.0,67419.0,0.087924]
[1729584587832,0.085202,67420.0,67419.0,0.087924]
[1729584592045,0.175202,67420.0,67419.0,0.087924]
[1729584594943,0.175202,67420.0,67419.0,0.001]
[1729584595841,0.620162,67420.0,67419.0,0.001]
[1729584596043,0.810162,67420.0,67409.0,0.08886926]
[1729584596237,0.074222,67402.0,67401.0,0.00222538]
[1729584596439,0.525022,67402.0,67401.0,0.08992823]
[1729584596635,0.615022,67402.0,67401.0,0.08770285]
[1729584596840,0.074238,67388.0,67384.0,0.074242]
[1729584597036,0.074238,67388.0,67385.0,0.18909867]
[1729584597241,0.074238,67388.0,67386.0,0.18909867]
[1729584597452,0.074238,67388.0,67387.0,0.08626915]
[1729584598048,0.074242,67385.0,67380.0,0.09]
[1729584598235,0.074242,67384.0,67381.0,0.08682915]
[1729584598553,0.074242,67384.0,67383.0,0.09]
[1729584599742,0.074242,67384.0,67380.0,0.074246]
[1729584599743,0.074242,67384.0,67381.0,0.09]
[1729584600140,0.074245,67381.0,67379.0,0.3608]
[1729584600344,0.3608,67394.0,67379.0,0.3608]
[1729584600345,0.164246,67380.0,67379.0,0.3608]
[1729584600540,0.164246,67380.0,67363.0,0.51915]
[1729584600541,0.09,67380.0,67366.0,0.074261]
[1729584600742,0.164256,67371.0,67364.0,0.3608]
[1729584601250,0.074256,67371.0,67370.0,0.04656131]
[1729584601551,0.074256,67371.0,67370.0,0.00222593]
[1729584601742,0.074256,67371.0,67370.0,0.0465567]
[1729584601941,0.074251,67376.0,67372.0,0.074255]
[1729584602244,0.074251,67376.0,67375.0,0.09]
[1729584602647,0.074251,67376.0,67375.0,0.13432883]
[1729584602845,0.074251,67376.0,67375.0,0.04432883]
[1729584603239,0.164251,67376.0,67373.0,0.04432883]
[1729584603441,0.074252,67375.0,67373.0,0.04432883]
[1729584604049,0.074253,67374.0,67373.0,0.04432883]
[1729584604250,0.074254,67373.0,67371.0,0.04432883]
[1729584604443,0.074254,67373.0,67370.0,0.05555476]
[1729584604639,0.074255,67372.0,67370.0,0.04655476]
[1729584604843,0.074255,67372.0,67371.0,0.04432883]
[1729584605045,0.074255,67372.0,67370.0,0.04655476]
[1729584605552,0.074255,67372.0,67371.0,0.008]
[1729584606048,0.074256,67371.0,67370.0,0.00222593]
[1729584606242,0.519536,67371.0,67370.0,0.00222593]
[1729584607246,0.074264,67364.0,67363.0,0.51831]
[1729584607447,0.615064,67364.0,67363.0,0.51831]
[1729584607657,1.060424,67364.0,67363.0,0.51831]
[1729584608242,1.020424,67364.0,67363.0,0.51831]
[1729584608748,0.675744,67364.0,67363.0,0.51831]
[1729584609051,0.69224315,67364.0,67363.0,0.53131]
[1729584609446,0.59156315,67364.0,67363.0,0.53131]
[1729584609745,0.69324315,67364.0,67363.0,0.53531]
[1729584609944,0.69324315,67364.0,67363.0,0.017]
[1729584610852,0.59256315,67364.0,67363.0,0.016]
[1729584611048,0.69324315,67364.0,67363.0,0.016]
[1729584611863,0.59256315,67364.0,67363.0,0.016]
[1729584612059,0.69324315,67364.0,67363.0,0.016]
[1729584613056,1.13860315,67364.0,67363.0,0.016]
[1729584613555,1.13760315,67364.0,67363.0,0.013]
[1729584613861,1.13860315,67364.0,67363.0,0.013]
[1729584614566,1.13860315,67364.0,67350.0,0.3608]
[1729584614567,1.13660315,67364.0,67350.0,0.3608]
[1729584614859,0.56024315,67364.0,67363.0,0.006]
[1729584615047,1.00560315,67364.0,67363.0,0.006]
[1729584615656,0.93033915,67364.0,67350.0,0.3608]
[1729584615864,0.074276,67353.0,67350.0,0.3608]
[1729584616048,0.074278,67351.0,67350.0,0.3608]
[1729584616250,0.214278,67351.0,67350.0,0.3608]
[1729584617962,0.214278,67351.0,67345.0,0.00222738]
[1729584617963,0.074284,67346.0,67345.0,0.00222738]
[1729584618153,0.074284,67346.0,67333.0,0.3608]
[1729584618154,0.074301,67331.0,67328.0,0.3608]
[1729584618462,0.14,67329.0,67328.0,0.3608]
[1729584618665,0.14,67336.0,67328.0,0.3608]
[1729584618957,0.14,67336.0,67328.0,0.435103]
[1729584618958,0.214295,67336.0,67328.0,0.435103]
[1729584619261,0.214295,67336.0,67328.0,0.3608]
[1729584619457,0.14,67336.0,67329.0,0.074302]
[1729584619760,0.074296,67335.0,67329.0,0.074302]
[1729584620060,0.001,67331.0,67329.0,0.074302]
[1729584620756,0.002,67331.0,67329.0,0.074302]
[1729584621363,0.001,67331.0,67329.0,0.074302]
[1729584621862,0.074297,67334.0,67329.0,0.076302]
[1729584622051,0.074297,67334.0,67329.0,0.082302]
[1729584622052,0.001,67331.0,67329.0,0.082302]
[1729584622955,0.001,67331.0,67330.0,0.074301]
[1729584623554,0.001,67331.0,67329.0,0.008]
[1729584623758,0.074301,67330.0,67329.0,0.008]
[1729584625153,0.09019382,67330.0,67329.0,0.008]
[1729584625358,1.27575382,67330.0,67306.0,0.36302865]
[1729584625562,0.14,67309.0,67306.0,0.36302865]
[1729584625969,0.074324,67310.0,67306.0,0.36302865]
[1729584626261,0.074324,67310.0,67306.0,0.3608]
[1729584626461,0.3608,67316.0,67306.0,0.3608]
[1729584626462,0.14,67309.0,67306.0,0.3608]
[1729584626662,0.074327,67307.0,67306.0,0.3748]
[1729584626852,0.074327,67307.0,67306.0,0.014]
[1729584627056,0.074327,67307.0,67292.0,0.00076]
[1729584627057,0.074342,67293.0,67292.0,0.00076]
[1729584627360,0.074348,67289.0,67285.0,0.07657969]
[1729584627569,0.14,67288.0,67285.0,0.07657969]
[1729584627759,0.14,67288.0,67286.0,0.074349]
[1729584627952,0.074341,67294.0,67289.0,0.074346]
[1729584628460,0.3608,67297.0,67293.0,0.074342]
[1729584628656,0.3608,67297.0,67294.0,0.074341]
[1729584628857,0.14,67305.0,67294.0,0.5008]
[1729584629056,0.3608,67307.0,67305.0,0.074329]
[1729584630269,0.3618,67307.0,67305.0,0.074329]
[1729584630862,0.001,67307.0,67305.0,0.074329]
[1729584631069,0.001,67307.0,67306.0,0.5008]
[1729584631567,0.001,67307.0,67306.0,0.575128]
[1729584631767,0.074319,67315.0,67306.0,0.5008]
[1729584632069,0.074319,67315.0,67309.0,0.074325]
[1729584632663,0.074319,67315.0,67306.0,0.50156]
[1729584632861,0.074319,67315.0,67310.0,0.074324]
[1729584633061,0.5008,67319.0,67313.0,0.07432]
[1729584633258,0.001,67315.0,67313.0,0.21432]
[1729584634063,0.001,67315.0,67313.0,0.14]
[1729584634267,0.001,67315.0,67306.0,0.3628]
[1729584634268,0.001,67315.0,67310.0,0.214324]
[1729584634473,0.001,67315.0,67311.0,0.074322]
[1729584635260,0.001,67315.0,67312.0,0.074321]
[1729584635677,0.002,67315.0,67312.0,0.074321]
[1729584635876,0.002,67315.0,67314.0,0.575119]
[1729584636181,0.001,67315.0,67314.0,0.575119]
[1729584636676,0.214316,67317.0,67314.0,0.3608]
[1729584636866,0.214316,67317.0,67306.0,0.5008]
[1729584636867,0.3608,67316.0,67306.0,0.3608]
[1729584637068,0.074327,67307.0,67306.0,0.3608]
[1729584637467,0.074327,67307.0,67297.0,0.3608]
[1729584637468,0.14,67307.0,67297.0,0.3608]
[1729584637675,0.3608,67308.0,67297.0,0.3608]
[1729584637676,0.14,67300.0,67297.0,0.3608]
[1729584637872,0.214335,67300.0,67297.0,0.3608]
[1729584638475,0.074336,67299.0,67296.0,0.074339]
[1729584638676,0.14,67300.0,67290.0,0.00076]
[1729584638977,0.14,67294.0,67287.0,0.074349]
[1729584639183,0.074346,67290.0,67287.0,0.074349]
[1729584640380,0.074346,67290.0,67287.0,0.002]
[1729584640683,0.074346,67290.0,67288.0,0.074348]
[1729584641267,0.074348,67288.0,67287.0,0.002]
[1729584642473,0.001,67290.0,67287.0,0.142]
[1729584642674,0.001,67290.0,67288.0,0.074347]
[1729584642871,0.074344,67292.0,67288.0,0.074347]
[1729584643069,0.001,67290.0,67287.0,0.142]
[1729584643278,0.001,67290.0,67289.0,0.074347]
[1729584643886,0.001,67290.0,67289.0,0.435147]
[1729584644180,0.43514,67295.0,67292.0,0.074343]
[1729584644779,0.07434,67295.0,67292.0,0.074343]
[1729584645385,0.07534,67295.0,67292.0,0.074343]
[1729584645786,0.07534,67295.0,67293.0,0.074342]
[1729584646484,0.001,67295.0,67294.0,0.074341]
[1729584647581,0.074338,67298.0,67294.0,0.074341]